bitfinex-derivatives/quotes_SOLF0:USTF0_20250709
["timestamp","ask_amount","ask_price","bid_price","bid_amount"]
[1752024303290,6.5883,151.75,151.72,6.63967009]
[1752024303791,3.82345224,151.76,151.72,6.63967009]
[1752024303792,6.5886,151.74,151.72,0.05047009]
[1752024304994,4.5336,151.78,151.72,0.05047009]
[1752024305295,4.5336,151.78,151.73,3.82345224]
[1752024305494,6.5863,151.8,151.76,6.5875]
[1752024305895,6.20015224,151.82,151.75,3.82345224]
[1752024306092,6.5867,151.79,151.76,0.04625713]
[1752024307595,6.5867,151.79,151.76,6.63395713]
[1752024307796,6.5867,151.79,151.76,0.04625713]
[1752024309292,6.5867,151.79,151.76,6.63385713]
[1752024309493,2.3767,151.82,151.76,3.86970937]
[1752024310696,6.586,151.8,151.77,6.5871]
[1752024312599,6.5857,151.81,151.77,6.5871]
[1752024312894,2.3767,151.82,151.78,6.5868]
[1752024313099,2.3767,151.82,151.78,10.41025224]
[1752024313400,8.962,151.82,151.78,10.41025224]
[1752024315296,8.962,151.82,151.79,6.5864]
[1752024316299,8.962,151.82,151.78,10.41015224]
[1752024321398,6.5856,151.81,151.78,10.41015224]
[1752024321801,2.3767,151.82,151.79,6.5864]
[1752024322001,2.3767,151.82,151.78,3.82345224]
[1752024322800,6.5856,151.81,151.78,10.41005224]
[1752024323104,2.3767,151.82,151.78,3.82345224]
[1752024323300,6.5863,151.8,151.77,10.41055224]
[1752024323801,6.5865,151.79,151.76,10.45730937]
[1752024324201,0.04593519,151.81,151.76,3.86970937]
[1752024324498,6.5864,151.79,151.76,10.45710937]
[1752024324900,0.04593519,151.81,151.76,10.45710937]
[1752024325102,0.04593519,151.81,151.78,3.82345224]
[1752024325603,0.04593519,151.81,151.78,10.41005224]
[1752024326700,0.04593519,151.81,151.79,6.5863]
[1752024330508,0.04593519,151.81,151.78,10.41005224]
[1752024332610,0.04593519,151.81,151.76,3.86970937]
[1752024333202,6.5863,151.8,151.76,10.45720937]
[1752024333610,6.5863,151.8,151.76,3.86970937]
[1752024334411,6.5863,151.8,151.76,10.45730937]
[1752024336915,6.63163519,151.81,151.77,6.5872]
[1752024338515,6.586,151.8,151.77,6.5872]
[1752024338814,6.586,151.8,151.76,10.45720937]
[1752024339513,6.586,151.8,151.77,6.5872]
[1752024341015,6.63163519,151.81,151.77,6.5872]
[1752024344815,6.63163519,151.81,151.79,2.44246767]
[1752024346219,0.04593519,151.81,151.79,2.44246767]
[1752024346818,6.63153519,151.81,151.79,2.44246767]
[1752024349321,0.04593519,151.81,151.79,2.44246767]
[1752024351413,0.04593519,151.81,151.79,9.02856767]
[1752024352319,0.04593519,151.81,151.79,2.44246767]
[1752024352520,6.63153519,151.81,151.79,2.44246767]
[1752024355223,6.63153519,151.81,151.78,6.5866]
[1752024355423,6.63153519,151.81,151.79,2.44246767]
[1752024355621,0.04593519,151.81,151.79,2.44246767]
[1752024356522,6.63163519,151.81,151.79,2.44246767]
[1752024359028,0.04593519,151.81,151.79,9.02886767]
[1752024359230,0.04593519,151.81,151.79,2.44246767]
[1752024360227,0.04593519,151.81,151.8,2.44246767]
[1752024360429,8.58625891,151.81,151.8,2.44246767]
[1752024361428,8.58625891,151.81,151.79,2.44246767]
[1752024361728,0.04593519,151.81,151.79,2.44246767]
[1752024362626,0.04593519,151.81,151.79,9.02886767]
[1752024364829,0.04593519,151.81,151.79,9.02876599]
[1752024367028,0.04593519,151.81,151.76,0.04625713]
[1752024367226,0.04593519,151.81,151.77,2.44236599]
[1752024368534,6.586,151.8,151.77,2.44236599]
[1752024368734,0.04593519,151.81,151.78,2.44281531]
[1752024368934,2.4887505,151.81,151.77,2.44281531]
[1752024369135,6.5863,151.8,151.77,9.03001531]
[1752024370234,6.5863,151.8,151.77,6.5872]
[1752024370434,6.5863,151.8,151.77,9.03001531]
[1752024372337,6.5863,151.8,151.78,2.44281531]
[1752024373136,6.5863,151.8,151.77,6.5872]
[1752024373437,6.5863,151.8,151.78,2.44281531]
[1752024380047,6.5863,151.8,151.77,6.5872]
[1752024380246,6.5863,151.8,151.78,2.44281531]
[1752024381452,2.4887505,151.81,151.76,2.48907244]
[1752024381643,8.53074535,151.8,151.76,2.48907244]
[1752024381843,2.4887505,151.81,151.76,2.48907244]
[1752024382047,8.5307479,151.8,151.76,2.48907244]
[1752024382248,2.4887505,151.81,151.76,2.48907244]
[1752024382448,8.53018056,151.8,151.77,2.44281531]
[1752024382649,6.5867,151.79,151.77,2.44281531]
[1752024387157,6.5867,151.79,151.76,0.04625713]
[1752024387357,2.4887505,151.81,151.77,2.44281531]
[1752024387559,8.52796763,151.8,151.77,2.44281531]
[1752024387760,6.5866,151.79,151.77,2.44281531]
[1752024392365,6.5866,151.79,151.76,6.63385713]
[1752024392560,6.5869,151.78,151.76,2.48907244]
[1752024393265,2.44281531,151.79,151.76,0.04625713]
[1752024394566,6.5871,151.78,151.76,0.04625713]
[1752024395361,2.44281531,151.79,151.76,0.04625713]
[1752024395562,8.51609393,151.78,151.76,0.04625713]
[1752024395863,2.44281531,151.79,151.76,0.04625713]
[1752024396169,6.5873,151.78,151.76,0.04625713]
[1752024397066,6.5873,151.77,151.76,0.04625713]
[1752024407372,0.04593519,151.81,151.76,2.48907244]
[1752024407574,0.04593519,151.81,151.78,2.44281531]
[1752024407974,6.586,151.8,151.78,2.44281531]
[1752024408575,9.0743505,151.81,151.78,2.44281531]
[1752024408777,6.63153519,151.81,151.78,2.44281531]
[1752024413471,6.5861,151.8,151.77,6.5871]
[1752024413672,6.5861,151.8,151.77,9.02991531]
[1752024416377,6.5861,151.8,151.77,2.44281531]
[1752024418376,6.5861,151.8,151.76,6.63385713]
[1752024418580,6.5861,151.8,151.77,2.44281531]
[1752024419377,6.5865,151.79,151.77,2.44281531]
[1752024419676,6.5865,151.79,151.78,2.44281531]
[1752024421476,6.5862,151.8,151.78,2.44281531]
[1752024422067,6.5862,151.8,151.77,2.44281531]
[1752024422478,6.5865,151.79,151.77,2.44281531]
[1752024429887,6.5869,151.78,151.77,2.44281531]
[1752024430182,2.44281531,151.79,151.76,0.04625713]
[1752024430686,6.5873,151.77,151.76,0.04625713]
[1752024435881,9.03011531,151.77,151.76,0.04625713]
[1752024437182,6.5888,151.74,151.71,6.5899]
[1752024437383,6.5888,151.74,151.72,2.44281531]
[1752024438688,6.5888,151.74,151.71,6.5899]
[1752024438889,6.589,151.73,151.72,2.44281531]
[1752024440488,6.589,151.73,151.71,2.44281531]
[1752024443093,6.5895,151.72,151.71,2.44281531]
[1752024443289,2.48732741,151.75,151.71,2.44281531]
[1752024443888,6.5893,151.73,151.71,2.44281531]
[1752024444284,6.5893,151.73,151.68,759.74]
[1752024444489,6.5893,151.73,151.71,2.44281531]
[1752024447392,2.48732741,151.75,151.68,821.72]
[1752024447596,2.44281531,151.73,151.7,2.44281531]
[1752024447789,0.0445121,151.75,151.68,821.72]
[1752024447994,2.44281531,151.74,151.71,2.44281531]
[1752024448194,2.48732741,151.75,151.71,2.44281531]
[1752024448596,6.5887,151.74,151.71,2.44281531]
[1752024450992,0.0445121,151.75,151.72,2.44281531]
[1752024451194,6.6328121,151.75,151.72,2.44281531]
[1752024451394,6.6328121,151.75,151.73,2.44281531]
[1752024453295,6.6328121,151.75,151.71,6.5895]
[1752024453497,6.6328121,151.75,151.73,2.44281531]
[1752024455100,6.6328121,151.75,151.71,6.5895]
[1752024455300,6.6328121,151.75,151.73,2.44281531]
[1752024461297,6.6328121,151.75,151.72,2.44281531]
[1752024461602,6.5887,151.74,151.72,2.44281531]
[1752024461795,2.44281531,151.74,151.68,568.84]
[1752024462000,2.44281531,151.74,151.7,2.44281531]
[1752024462300,2.44281531,151.74,151.69,190.8]
[1752024462601,2.44281531,151.74,151.7,2.44281531]
[1752024462904,2.44281531,151.73,151.69,2.44281531]
[1752024463204,2.44281531,151.72,151.68,2.44281531]
[1752024463397,6.5908,151.69,151.67,2.44281531]
[1752024463792,6.5908,151.69,151.66,6.5918]
[1752024464093,6.5908,151.69,151.67,2.44281531]
[1752024468698,2.48442197,151.7,151.65,190.8]
[1752024468899,2.48442197,151.7,151.67,2.44281531]
[1752024469306,6.591,151.69,151.67,2.44281531]
[1752024470109,2.48442197,151.7,151.64,6.5928]
[1752024470409,2.44281531,151.69,151.65,2.44281531]
[1752024471303,2.44281531,151.69,151.64,6.5928]
[1752024471500,6.5913,151.68,151.65,2.44281531]
[1752024472409,6.5913,151.68,151.65,9.03521531]
[1752024472609,6.5913,151.68,151.66,2.44281531]
[1752024473803,2.44281531,151.67,151.53,19.76]
[1752024474008,2.3319,151.67,151.51,24.40215823]
[1752024474200,2.44281531,151.6,151.56,2.44281531]
[1752024474911,2.44281531,151.59,151.55,2.44281531]
[1752024475115,2.3319,151.6,151.55,2.44281531]
[1752024475307,2.44281531,151.59,151.55,9.03931531]
[1752024475507,2.44281531,151.58,151.54,2.44281531]
[1752024475908,2.44281531,151.58,151.54,9.03991531]
[1752024476107,2.44281531,151.58,151.55,2.44281531]
[1752024476108,2.49350109,151.58,151.55,2.44281531]
[1752024476813,0.05068578,151.58,151.53,3.8284172]
[1752024477205,0.05068578,151.58,151.55,6.5967]
[1752024478615,6.5963,151.57,151.5,3.8284172]
[1752024479112,6.5963,151.57,151.48,190.84]
[1752024479316,3.8284172,151.56,151.49,3.8284172]
[1752024479512,10.4248172,151.56,151.49,3.8284172]
[1752024479716,0.04798752,151.54,151.49,3.8284172]
[1752024480313,0.04798752,151.54,151.48,194.6684172]
[1752024481318,0.04798752,151.54,151.51,6.5983]
[1752024483411,0.04798752,151.54,151.48,194.6684172]
[1752024483610,0.04798752,151.54,151.52,6.5981]
[1752024483812,0.04798752,151.54,151.5,3.8284172]
[1752024484016,0.04798752,151.54,151.49,3.8284172]
[1752024485217,0.04798752,151.54,151.46,252.88]
[1752024485417,3.87640472,151.54,151.38,19.76]
[1752024485620,3.8284172,151.52,151.45,3.8284172]
[1752024485914,3.8284172,151.52,151.46,6.6005]
[1752024485915,6.5989,151.51,151.46,6.6005]
[1752024486219,6.64319985,151.5,151.46,6.6005]
[1752024486610,0.04409985,151.5,151.46,6.6005]
[1752024486820,6.64329985,151.5,151.46,6.6005]
[1752024487218,0.04409985,151.5,151.45,6.601]
[1752024487722,0.04409985,151.5,151.43,572.9884172]
[1752024488121,0.04409985,151.5,151.43,569.16]
[1752024488417,0.04409985,151.5,151.43,822.08]
[1752024488621,0.04409985,151.5,151.46,3.8284172]
[1752024489525,0.04409985,151.5,151.48,3.8284172]
[1752024489830,0.04409985,151.5,151.49,6.5995]
[1752024499930,6.1183172,151.59,151.49,190.96]
[1752024500131,2.2899,151.59,151.52,3.8284172]
[1752024500325,6.5958,151.58,151.52,3.8284172]
[1752024500731,2.2899,151.59,151.49,190.96]
[1752024500934,2.2899,151.59,151.52,3.8284172]
[1752024501632,6.5964,151.57,151.52,10.4263172]
[1752024503324,3.8284172,151.58,151.52,3.8284172]
[1752024503530,3.8284172,151.58,151.51,6.5984]
[1752024503924,6.5971,151.55,151.51,6.5984]
[1752024504123,3.8284172,151.58,151.5,10.4272172]
[1752024504935,6.5971,151.55,151.5,10.4272172]
[1752024505142,6.5971,151.55,151.51,6.5985]
[1752024509549,6.5975,151.54,151.5,6.5988]
[1752024509743,6.5975,151.54,151.5,10.4272172]
[1752024510048,6.5975,151.54,151.5,3.8284172]
[1752024510649,6.5968,151.56,151.5,3.8284172]
[1752024510851,6.5968,151.56,151.52,3.8284172]
[1752024511053,6.5968,151.56,151.52,10.4263172]
[1752024511244,6.5969,151.55,151.52,6.5979]
[1752024511546,6.5969,151.55,151.47,190.92]
[1752024511547,6.5969,151.55,151.51,10.4267172]
[1752024511943,6.5966,151.56,151.51,3.8284172]
[1752024512144,6.5966,151.56,151.52,6.5981]
[1752024512750,6.5969,151.55,151.52,6.5981]
[1752024513147,6.5969,151.55,151.51,10.4269172]
[1752024513346,3.8284172,151.58,151.51,10.4269172]
[1752024514545,6.5964,151.56,151.52,6.5981]
[1752024516048,6.1183172,151.59,151.53,3.8284172]
[1752024516246,8.21976206,151.58,151.53,3.8284172]
[1752024516443,6.5958,151.58,151.54,6.5973]
[1752024516949,2.2899,151.59,151.54,6.5973]
[1752024517150,8.22804882,151.58,151.54,6.5973]
[1752024517350,8.22804882,151.57,151.54,6.5973]
[1752024517551,6.5957,151.58,151.54,6.5973]
[1752024517751,8.23014031,151.57,151.54,6.5973]
[1752024517951,6.596,151.57,151.53,6.5975]
[1752024518151,6.596,151.57,151.53,10.4259172]
[1752024518452,14.84257505,151.56,151.53,3.8284172]
[1752024518652,6.5965,151.56,151.53,3.8284172]
[1752024519357,3.8284172,151.56,151.49,3.8284172]
[1752024520654,6.5977,151.53,151.5,6.5987]
[1752024521956,6.5977,151.53,151.49,10.4277172]
[1752024524761,6.5977,151.53,151.5,6.599]
[1752024540066,6.5975,151.54,151.5,6.599]
[1752024540267,3.8284172,151.56,151.5,6.599]
[1752024540673,6.5976,151.54,151.5,6.599]
[1752024540972,2.4513139,151.55,151.51,2.4513139]
[1752024541272,6.5977,151.54,151.51,2.4513139]
[1752024544781,6.5969,151.55,151.52,2.4513139]
[1752024545074,2.4513139,151.56,151.52,2.4513139]
[1752024545274,9.0480139,151.56,151.52,9.0492139]
[1752024545467,2.4513139,151.56,151.52,9.0492139]
[1752024545669,2.4513139,151.56,151.52,2.4513139]
[1752024546472,6.5969,151.55,151.52,2.4513139]
[1752024546982,6.5973,151.54,151.52,2.4513139]
[1752024547274,6.5973,151.54,151.51,5.75239489]
[1752024547475,2.4513139,151.55,151.46,190.88]
[1752024547675,2.4513139,151.55,151.46,186.96977149]
[1752024547877,2.2899,151.59,151.52,2.4513139]
[1752024548069,2.2899,151.59,151.46,169.63657133]
[1752024548271,6.5963,151.57,151.55,2.4513139]
[1752024548467,8.29418831,151.56,151.55,2.4513139]
[1752024548770,8.29418831,151.56,151.55,10.69426852]
[1752024548975,10.74550221,151.56,151.55,8.24295462]
[1752024549376,17.34190221,151.56,151.55,8.24295462]
[1752024550277,6.5976,151.54,151.51,2.4513139]
[1752024550678,6.5976,151.54,151.51,9.0496139]
[1752024551681,6.5976,151.54,151.52,2.4513139]
[1752024552179,6.5976,151.54,151.51,6.5983]
[1752024552379,6.5976,151.54,151.52,2.4513139]
[1752024553583,2.4513139,151.55,151.52,2.4513139]
[1752024554181,6.5975,151.54,151.52,2.4513139]
[1752024554777,2.4513139,151.54,151.44,2.1747]
[1752024554976,2.4513139,151.52,151.49,2.4513139]
[1752024555176,2.4513139,151.53,151.49,2.4513139]
[1752024555582,2.4513139,151.54,151.5,2.4513139]
[1752024556583,6.5982,151.52,151.5,2.4513139]
[1752024557380,2.4513139,151.54,151.5,2.4513139]
[1752024557984,6.5984,151.52,151.5,2.4513139]
[1752024558482,2.4513139,151.54,151.5,2.4513139]
[1752024558782,2.4513139,151.54,151.44,192.9747]
[1752024558783,2.4513139,151.53,151.49,2.4513139]
[1752024559284,6.599,151.5,151.48,2.4513139]
[1752024559480,2.4513139,151.52,151.48,2.4513139]
[1752024560182,6.5993,151.5,151.48,2.4513139]
[1752024562288,3.30132763,151.5,151.49,8.2450664]
[1752024564392,6.5988,151.51,151.49,8.2450664]
[1752024564693,6.5988,151.51,151.5,8.2450664]
[1752024565600,2.4513139,151.52,151.5,8.2450664]
[1752024565895,2.4513139,151.52,151.51,8.2450664]
[1752024566098,2.4513139,151.53,151.51,8.2450664]
[1752024566298,9.0490139,151.53,151.52,8.2450664]
[1752024566599,17.31171834,151.53,151.52,8.2450664]
[1752024567897,6.5989,151.51,151.49,2.4513139]
[1752024569701,6.5991,151.5,151.47,6.6003]
[1752024569892,6.5991,151.5,151.49,2.4513139]
[1752024573302,6.5991,151.5,151.48,2.4513139]
[1752024574300,2.4513139,151.51,151.44,2.1747]
[1752024574494,2.4513139,151.49,151.46,2.4513139]
[1752024574702,2.4513139,151.49,151.45,2.4513139]
[1752024575004,6.6002,151.48,151.45,2.4513139]
[1752024575403,6.6002,151.48,151.46,2.4513139]
[1752024577795,6.6002,151.48,151.44,6.6016]
[1752024577796,2.4513139,151.47,151.44,2.4513139]
[1752024578604,6.6011,151.46,151.44,2.4513139]
[1752024580001,6.6005,151.47,151.44,2.4513139]
[1752024580205,9.0518139,151.47,151.44,2.4513139]
[1752024582805,6.6009,151.46,151.44,2.4513139]
[1752024583910,6.6012,151.45,151.41,576.4628]
[1752024584104,6.6012,151.45,151.42,2.4513139]
[1752024585404,2.4513139,151.48,151.44,2.4513139]
[1752024585808,6.6007,151.47,151.44,2.4513139]
[1752024587106,6.6007,151.47,151.42,6.6023]
[1752024587307,6.6009,151.46,151.44,2.4513139]
[1752024588909,6.6009,151.46,151.43,2.4513139]
[1752024589712,6.6009,151.46,151.42,197.4023]
[1752024589913,6.6009,151.46,151.43,2.4513139]
[1752024591115,6.6009,151.46,151.44,2.4513139]
[1752024593211,6.6009,151.46,151.43,2.4513139]
[1752024594511,6.6009,151.46,151.43,9.0533139]
[1752024595210,6.6013,151.45,151.42,197.4023]
[1752024595505,6.6013,151.45,151.43,2.4513139]
[1752024596217,2.4513139,151.46,151.42,190.78]
[1752024596711,2.4513139,151.45,151.41,193.2313139]
[1752024597216,6.6019,151.44,151.41,193.2313139]
[1752024597819,6.6021,151.43,151.41,2.4513139]
[1752024598016,2.4513139,151.45,151.41,2.4513139]
[1752024598516,6.6019,151.44,151.41,9.0542139]
[1752024598918,6.6019,151.44,151.41,6.6029]
[1752024600019,9.0532139,151.44,151.41,6.6029]
[1752024600421,6.6019,151.44,151.41,6.6029]
[1752024600824,6.6019,151.44,151.4,199.8345139]
[1752024601122,2.4513139,151.41,151.34,570.08]
[1752024601323,2.4513139,151.41,151.38,2.4513139]
[1752024601621,2.3134,151.44,151.35,1.14934936]
[1752024601622,6.6023,151.43,151.35,1.14934936]
[1752024601924,6.6023,151.43,151.39,2.4513139]
[1752024602224,9.0539139,151.42,151.38,9.0552139]
[1752024602418,2.4513139,151.42,151.38,199.8352139]
[1752024603416,6.6027,151.42,151.39,2.4513139]
[1752024603821,9.0537139,151.43,151.39,9.0551139]
[1752024604020,2.4513139,151.43,151.39,9.0551139]
[1752024604820,6.6028,151.42,151.39,2.4513139]
[1752024606019,221.41811262,151.48,151.41,2.4513139]
[1752024606227,2.4513139,151.47,151.43,2.4513139]
[1752024606621,9.0518139,151.47,151.43,9.0530139]
[1752024607620,9.0518139,151.47,151.44,2.4513139]
[1752024607818,230.46942652,151.48,151.44,9.0528139]
[1752024608227,221.41811262,151.48,151.46,2.4513139]
[1752024608528,221.41811262,151.48,151.45,2.4513139]
[1752024609022,4.7092139,151.49,151.45,2.4513139]
[1752024609227,6.5999,151.48,151.45,2.4513139]
[1752024610124,6.5999,151.48,151.44,9.0527139]
[1752024610125,9.0512139,151.48,151.44,9.0527139]
[1752024611330,9.0512139,151.48,151.45,2.4513139]
[1752024611829,11.3088139,151.49,151.45,9.0524139]
[1752024613529,6.6,151.48,151.45,9.0524139]
[1752024614129,6.6,151.48,151.45,6.6011]
[1752024614329,6.6,151.48,151.45,9.0524139]
[1752024614831,6.6,151.48,151.45,6.6011]
[1752024615034,6.6,151.48,151.45,9.0524139]
[1752024617634,6.6,151.48,151.45,6.6011]
[1752024617831,6.6,151.48,151.45,9.0524139]
[1752024620034,6.6003,151.47,151.45,2.4513139]
[1752024621938,2.4513139,151.46,151.37,20.80781674]
[1752024622139,2.4513139,151.44,151.4,2.4513139]
[1752024622535,6.6023,151.43,151.39,6.6038]
[1752024622738,6.6023,151.43,151.4,2.4513139]
[1752024623241,6.6026,151.42,151.39,2.4513139]
[1752024624534,6.6026,151.42,151.39,9.0547139]
[1752024624733,6.603,151.41,151.38,2.4513139]
[1752024624942,6.603,151.41,151.37,3.836597]
[1752024625134,6.6034,151.4,151.37,10.441097]
[1752024625334,3.836597,151.44,151.37,10.441097]
[1752024625535,3.836597,151.44,151.37,3.836597]
[1752024625740,6.6033,151.41,151.37,10.441097]
[1752024626238,6.6034,151.4,151.37,10.441097]
[1752024626737,6.6034,151.4,151.37,3.836597]
[1752024627035,6.6039,151.39,151.35,194.556597]
[1752024627439,3.836597,151.42,151.34,764.636597]
[1752024627635,3.836597,151.42,151.34,764.656597]
[1752024627837,6.6039,151.39,151.35,6.6052]
[1752024628041,3.836597,151.42,151.35,6.6052]
[1752024628338,6.6042,151.39,151.35,6.6052]
[1752024628539,3.836597,151.42,151.35,6.6052]
[1752024628835,6.6043,151.38,151.35,6.6052]
[1752024629044,3.836597,151.42,151.36,6.6051]
[1752024630541,6.6041,151.39,151.36,6.6051]
[1752024631040,3.836597,151.4,151.32,62.0]
[1752024631339,6.6045,151.38,151.33,3.836597]
[1752024632140,6.6045,151.38,151.35,6.6055]
[1752024632537,3.836597,151.38,151.31,194.596597]
[1752024632936,3.836597,151.38,151.33,6.6061]
[1752024633140,3.836597,151.38,151.31,194.596597]
[1752024633339,3.836597,151.38,151.31,3.836597]
[1752024633537,3.836597,151.38,151.33,6.606]
[1752024634235,3.836597,151.38,151.34,6.6059]
[1752024634432,3.836597,151.38,151.3,190.76]
[1752024634433,3.836597,151.38,151.3,62.0]
[1752024634634,3.836597,151.38,151.31,3.836597]
[1752024634837,3.836597,151.38,151.29,1.14961514]
[1752024635038,3.836597,151.37,151.29,3.836597]
[1752024635246,6.6062,151.34,151.29,3.836597]
[1752024635649,6.6062,151.34,151.29,194.596597]
[1752024636538,6.6062,151.34,151.3,6.6076]
[1752024637044,6.6057,151.35,151.31,6.607]
[1752024637240,6.6057,151.35,151.29,194.616597]
[1752024637938,6.6057,151.35,151.31,6.607]
[1752024641250,6.6057,151.35,151.32,6.6068]
[1752024641549,11.3,151.36,151.32,6.6068]
[1752024643050,6.6056,151.35,151.32,6.6068]
[1752024644552,3.836597,151.35,151.28,3.836597]
[1752024644754,3.836597,151.35,151.28,194.656597]
[1752024645049,6.6063,151.34,151.3,6.6073]
[1752024645248,6.6063,151.34,151.28,194.656597]
[1752024645652,6.6063,151.34,151.28,190.82]
[1752024645841,6.6065,151.33,151.3,6.6076]
[1752024646448,6.6065,151.33,151.3,6.65130104]
[1752024646647,6.6069,151.32,151.3,0.04370104]
[1752024646848,3.836597,151.31,151.3,0.04370104]
[1752024647152,3.836597,151.31,151.26,190.82]
[1752024647846,8.531397,151.36,151.26,6.6092]
[1752024648048,3.836597,151.31,151.26,6.6092]
[1752024648443,6.608,151.3,151.26,6.6092]
[1752024649148,6.6083,151.29,151.22,1.15009006]
[1752024649352,6.6083,151.29,151.23,194.676597]
[1752024649552,6.6078,151.3,151.26,6.6094]
[1752024649749,0.0469745,151.28,151.25,3.836597]
[1752024649951,8.531397,151.36,151.3,6.6076]
[1752024650252,6.6066,151.33,151.29,194.676597]
[1752024650451,6.6066,151.33,151.29,3.836597]
[1752024650952,8.531397,151.36,151.3,6.6075]
[1752024650953,6.6062,151.34,151.3,6.6075]
[1752024652053,4.6948,151.36,151.29,0.05077126]
[1752024652243,4.6948,151.36,151.31,3.836597]
[1752024652742,3.836597,151.39,151.31,3.836597]
[1752024652950,3.836597,151.39,151.32,3.836597]
[1752024653254,6.6049,151.37,151.33,6.6061]
[1752024653444,4.6907,151.4,151.34,3.88133108]
[1752024653648,3.836597,151.43,151.36,3.836597]
[1752024653853,6.6034,151.41,151.36,10.441597]
[1752024654255,6.6034,151.41,151.37,0.04808087]
[1752024654949,6.6035,151.4,151.37,0.04808087]
[1752024655454,3.836597,151.43,151.37,0.04808087]
[1752024656763,6.6035,151.4,151.37,6.65268087]
[1752024657459,10.439597,151.41,151.37,6.65268087]
[1752024659257,6.603,151.41,151.37,6.65268087]
[1752024659463,6.6035,151.4,151.37,6.65268087]
[1752024660265,6.6035,151.4,151.37,0.04808087]
[1752024661371,6.6038,151.39,151.37,0.04808087]
[1752024661575,3.836597,151.41,151.37,0.04808087]
[1752024661967,3.836597,151.41,151.36,6.6049]
[1752024662266,3.836597,151.41,151.37,0.04689257]
[1752024662467,6.6032,151.41,151.37,0.04689257]
[1752024662669,3.836597,151.43,151.37,0.04689257]
[1752024663069,4.6907,151.47,151.38,6.6042]
[1752024663268,3.836597,151.43,151.37,0.04689257]
[1752024663570,6.603,151.41,151.35,3.836597]
[1752024663870,3.836597,151.43,151.38,0.04768934]
[1752024664270,6.6028,151.42,151.38,0.04768934]
[1752024664666,6.6032,151.41,151.38,0.04768934]
[1752024664860,3.836597,151.41,151.38,0.04768934]
[1752024665070,3.836597,151.39,151.38,0.04768934]
[1752024665465,3.836597,151.39,151.32,3.836597]
[1752024665771,3.836597,151.39,151.3,6.000497]
[1752024665967,3.836597,151.37,151.32,6.6066]
[1752024666171,3.836597,151.37,151.29,570.58]
[1752024666671,6.6058,151.35,151.31,6.6071]
[1752024666865,6.65049306,151.35,151.31,6.6071]
[1752024667071,6.65049306,151.35,151.29,570.58]
[1752024667667,6.6062,151.34,151.29,570.58]
[1752024668076,3.88129006,151.35,151.31,6.607]
[1752024668372,10.48709006,151.35,151.31,6.607]
[1752024669065,6.606,151.34,151.3,6.6074]
[1752024669975,10.48709006,151.35,151.31,6.6073]
[1752024674476,6.65049306,151.35,151.32,6.6068]
[1752024674670,6.65049306,151.35,151.3,3.836597]
[1752024675070,6.65049306,151.35,151.31,6.607]
[1752024675574,0.04469306,151.35,151.32,3.836597]
[1752024677176,0.04469306,151.35,151.29,572.9617]
[1752024677375,0.04469306,151.35,151.3,3.836597]
[1752024677779,3.88129006,151.35,151.29,570.58]
[1752024677968,3.88129006,151.35,151.29,190.82]
[1752024678374,6.6067,151.33,151.29,197.4278]
[1752024678573,6.6067,151.33,151.28,3.836597]
[1752024679473,6.6067,151.33,151.3,6.6075]
[1752024681474,6.6067,151.33,151.29,6.608]
[1752024681671,3.836597,151.33,151.24,18.50171674]
[1752024681873,3.836597,151.33,151.26,3.836597]
[1752024682281,0.04340831,151.31,151.26,3.836597]
[1752024682579,6.608,151.3,151.26,10.445797]
[1752024683286,6.65090831,151.31,151.27,6.609]
[1752024683780,6.6079,151.3,151.26,10.445897]
[1752024684180,6.6079,151.3,151.26,3.836597]
[1752024684580,6.6079,151.3,151.27,6.609]
[1752024684876,0.04340831,151.31,151.26,3.836597]
[1752024684877,6.65090831,151.31,151.26,3.836597]
[1752024685083,6.65090831,151.31,151.27,6.6088]
[1752024686177,6.6078,151.3,151.26,10.445897]
[1752024686582,6.6082,151.29,151.26,3.836597]
[1752024687278,0.04340831,151.31,151.26,3.836597]
[1752024687476,6.6079,151.3,151.26,10.445797]
[1752024687884,6.6079,151.3,151.26,6.6092]
[1752024689180,0.04340831,151.31,151.26,6.6092]
[1752024689686,6.608,151.3,151.26,6.6092]
[1752024689888,0.04340831,151.31,151.26,6.6092]